[Event "Live Chess"]
[Site "Chess.com"]
[Date "2023.05.21"]
[Round "-"]
[White "SupremeTactician"]
[Black "chessfiction"]
[Result "0-1"]
[WhiteElo "2170"]
[BlackElo "2303"]
[TimeControl "300"]
[EndTime "8:41:14 PDT"]
[Termination "chessfiction won by resignation"]

1. e4 {[%clk 0:04:59.9]} 1... d6 {[%clk 0:04:57.8]} 2. d4 {[%clk 0:04:59]} 2...
Nf6 {[%clk 0:04:57.7]} 3. Nc3 {[%clk 0:04:58.6]} 3... c6 {[%clk 0:04:56.7]} 4.
f4 {[%clk 0:04:57.8]} 4... Qa5 {[%clk 0:04:55.5]} 5. Bd2 {[%clk 0:04:56.5]} 5...
e5 {[%clk 0:04:54.8]} 6. Nf3 {[%clk 0:04:55.6]} 6... Bg4 {[%clk 0:04:53]} 7.
dxe5 {[%clk 0:04:54.5]} 7... dxe5 {[%clk 0:04:51.3]} 8. fxe5 {[%clk 0:04:53.7]}
8... Nfd7 {[%clk 0:04:50]} 9. Be2 {[%clk 0:04:53.2]} 9... Nxe5 {[%clk
0:04:47.1]} 10. Nxe5 {[%clk 0:04:52.1]} 10... Bxe2 {[%clk 0:04:46.1]} 11. Qxe2
{[%clk 0:04:50.1]} 11... Qxe5 {[%clk 0:04:44.9]} 12. O-O {[%clk 0:04:49.9]}
12... Nd7 {[%clk 0:04:43.1]} 13. Bf4 {[%clk 0:04:48.7]} 13... Qe6 {[%clk
0:04:40.4]} 14. Rad1 {[%clk 0:04:46.4]} 14... O-O-O {[%clk 0:04:39.2]} 15. Qf3
{[%clk 0:04:42.1]} 15... h6 {[%clk 0:04:36.9]} 16. Be3 {[%clk 0:04:40.5]} 16...
Ne5 {[%clk 0:04:28.8]} 17. Qf5 {[%clk 0:04:38.5]} 17... Nc4 {[%clk 0:04:16.8]}
18. Rxd8+ {[%clk 0:04:34.7]} 18... Kxd8 {[%clk 0:04:13.5]} 19. Bxa7 {[%clk
0:04:31.2]} 19... Qxf5 {[%clk 0:04:10.6]} 20. exf5 {[%clk 0:04:30.4]} 20... b6
{[%clk 0:04:08.4]} 21. b3 {[%clk 0:04:29.4]} 21... Bc5+ {[%clk 0:04:05.5]} 22.
Kh1 {[%clk 0:04:27.3]} 22... Ne3 {[%clk 0:04:05.4]} 23. Rf3 {[%clk 0:04:24]}
23... Kc7 {[%clk 0:03:57.6]} 24. Na4 {[%clk 0:04:23.4]} 24... Rd8 {[%clk
0:03:48.9]} 25. h3 {[%clk 0:04:16.9]} 25... Rd1+ {[%clk 0:03:46]} 26. Kh2 {[%clk
0:04:16.2]} 26... Nf1+ {[%clk 0:03:42.2]} 27. Rxf1 {[%clk 0:04:15.5]} 27... Rxf1
{[%clk 0:03:37.9]} 28. Nxc5 {[%clk 0:04:14.1]} 28... bxc5 {[%clk 0:03:33.1]} 29.
Bxc5 {[%clk 0:04:13.6]} 29... Rxf5 {[%clk 0:03:32]} 30. Bf8 {[%clk 0:04:11.8]}
30... Rf2 {[%clk 0:03:23.9]} 31. Bxg7 {[%clk 0:04:10.5]} 31... Rxc2 {[%clk
0:03:23]} 32. Bxh6 {[%clk 0:04:05.2]} 32... Rxa2 {[%clk 0:03:21.7]} 33. Bf8
{[%clk 0:04:02.9]} 33... Rb2 {[%clk 0:03:18.3]} 34. b4 {[%clk 0:04:02]} 34...
Kd7 {[%clk 0:03:16.4]} 35. Kg3 {[%clk 0:04:01]} 35... Ke6 {[%clk 0:03:12.9]} 36.
h4 {[%clk 0:04:00.2]} 36... Kf5 {[%clk 0:03:11.6]} 37. Be7 {[%clk 0:03:55.9]}
37... Rb3+ {[%clk 0:03:10.6]} 38. Kh2 {[%clk 0:03:51.3]} 38... Kg4 {[%clk
0:03:09.8]} 39. Bc5 {[%clk 0:03:41.6]} 39... Kxh4 {[%clk 0:03:07.9]} 40. Bd6
{[%clk 0:03:41.1]} 40... Kg4 {[%clk 0:03:07]} 41. Bc5 {[%clk 0:03:40.6]} 41...
f5 {[%clk 0:03:06.3]} 42. Bd6 {[%clk 0:03:39.8]} 42... f4 {[%clk 0:03:05]} 43.
Kg1 {[%clk 0:03:38.6]} 43... Rb2 {[%clk 0:03:03.9]} 44. Kf1 {[%clk 0:03:37.6]}
44... Rc2 {[%clk 0:03:02.8]} 45. Bc7 {[%clk 0:03:36.1]} 45... Kf5 {[%clk
0:02:56]} 46. Kg1 {[%clk 0:03:32.5]} 46... Ke4 {[%clk 0:02:53.8]} 47. Kf1 {[%clk
0:03:30.3]} 47... Rd2 {[%clk 0:02:47.5]} 48. Kg1 {[%clk 0:03:28.3]} 48... Rd4
{[%clk 0:02:44.3]} 49. Ba5 {[%clk 0:03:24]} 49... Kd3 {[%clk 0:02:39.4]} 50. Kf2
{[%clk 0:03:22.5]} 50... Ke4 {[%clk 0:02:38.4]} 51. Ke2 {[%clk 0:03:21.2]} 51...
Rd3 {[%clk 0:02:35.7]} 52. Bb6 {[%clk 0:03:19.6]} 52... Rb3 {[%clk 0:02:34.8]}
53. Bc5 {[%clk 0:03:19]} 53... Rb2+ {[%clk 0:02:34]} 54. Kf1 {[%clk 0:03:18.5]}
54... f3 {[%clk 0:02:31.7]} 55. gxf3+ {[%clk 0:03:17.6]} 55... Kxf3 {[%clk
0:02:31.6]} 56. Ke1 {[%clk 0:03:17.2]} 56... Ke4 {[%clk 0:02:30.3]} 57. Kd1
{[%clk 0:03:16.5]} 57... Kd3 {[%clk 0:02:28.9]} 58. Kc1 {[%clk 0:03:15.6]} 58...
Rg2 {[%clk 0:02:26.1]} 59. Be7 {[%clk 0:03:14.7]} 59... Kc4 {[%clk 0:02:24.8]}
60. Kd1 {[%clk 0:03:13.5]} 60... Kd3 {[%clk 0:02:16.2]} 61. Kc1 {[%clk
0:03:11.7]} 61... Kc3 {[%clk 0:02:15.1]} 62. Kd1 {[%clk 0:03:10.2]} 62... Rd2+
{[%clk 0:02:13.7]} 63. Ke1 {[%clk 0:03:09.6]} 63... Ra2 {[%clk 0:02:09.3]} 64.
Bc5 {[%clk 0:03:05.8]} 64... Rb2 {[%clk 0:02:05.7]} 65. Bd6 {[%clk 0:02:58.8]}
65... Rxb4 {[%clk 0:02:02.6]} 66. Bxb4+ {[%clk 0:02:57.8]} 66... Kxb4 {[%clk
0:02:02.5]} 67. Kd2 {[%clk 0:02:55.5]} 67... Kb3 {[%clk 0:01:57.6]} 68. Kc1
{[%clk 0:02:53.5]} 68... c5 {[%clk 0:01:47.3]} 69. Kb1 {[%clk 0:02:49.8]} 69...
c4 {[%clk 0:01:44.8]} 70. Kc1 {[%clk 0:02:47.2]} 70... Kc3 {[%clk 0:01:41]} 71.
Kd1 {[%clk 0:02:46.4]} 71... Kb2 {[%clk 0:01:40.1]} 0-1

[Event "Live Chess"]
[Site "Chess.com"]
[Date "2023.05.21"]
[Round "-"]
[White "CeladonFish"]
[Black "MartinWalker4"]
[Result "0-1"]
[WhiteElo "1136"]
[BlackElo "2077"]
[TimeControl "300"]
[EndTime "8:41:14 PDT"]
[Termination "MartinWalker4 won by resignation"]

1. d4 {[%clk 0:04:59.3]} 1... Nf6 {[%clk 0:04:58.1]} 2. c4 {[%clk 0:04:58.5]}
2... g6 {[%clk 0:04:56.9]} 3. Nc3 {[%clk 0:04:57.7]} 3... d5 {[%clk 0:04:55.7]}
4. Bf4 {[%clk 0:04:57.3]} 4... Bg7 {[%clk 0:04:52.7]} 5. e3 {[%clk 0:04:56.6]}
5... O-O {[%clk 0:04:35.9]} 6. Nf3 {[%clk 0:04:55.1]} 6... c5 {[%clk 0:04:31.3]}
7. cxd5 {[%clk 0:04:53.3]} 7... cxd4 {[%clk 0:04:27.5]} 8. Nxd4 {[%clk
0:04:49.8]} 8... Nxd5 {[%clk 0:04:26.2]} 9. Nxd5 {[%clk 0:04:48.3]} 9... Qxd5
{[%clk 0:04:24.1]} 10. Nf3 {[%clk 0:04:32.9]} 10... Qxd1+ {[%clk 0:04:17.2]} 11.
Rxd1 {[%clk 0:04:31.8]} 11... Bxb2 {[%clk 0:04:15.9]} 12. Bc4 {[%clk 0:04:20.8]}
12... Bc3+ {[%clk 0:04:14.3]} 13. Ke2 {[%clk 0:04:19.2]} 13... Nc6 {[%clk
0:03:52.4]} 14. Rd3 {[%clk 0:04:16.2]} 14... Bf6 {[%clk 0:03:47.9]} 15. Rhd1
{[%clk 0:04:12]} 15... e5 {[%clk 0:03:46.1]} 16. Nxe5 {[%clk 0:04:08]} 16...
Bxe5 {[%clk 0:03:43.7]} 17. Bxe5 {[%clk 0:03:57.6]} 17... Nxe5 {[%clk
0:03:41.9]} 18. Rd4 {[%clk 0:03:56.3]} 18... Nxc4 {[%clk 0:03:40.1]} 19. Rxc4
{[%clk 0:03:55.3]} 19... Be6 {[%clk 0:03:39]} 0-1

[Event "Live Chess"]
[Site "Chess.com"]
[Date "2023.05.21"]
[Round "-"]
[White "raminguy"]
[Black "youtookmyhorse"]
[Result "1-0"]
[WhiteElo "1925"]
[BlackElo "784"]
[TimeControl "300"]
[EndTime "8:41:18 PDT"]
[Termination "raminguy won by checkmate"]

1. d4 {[%clk 0:04:58.3]} 1... c6 {[%clk 0:04:57.4]} 2. Nc3 {[%clk 0:04:55.7]}
2... d5 {[%clk 0:04:57]} 3. Bf4 {[%clk 0:04:54.7]} 3... Bf5 {[%clk 0:04:50.9]}
4. e3 {[%clk 0:04:53.5]} 4... e6 {[%clk 0:04:50.1]} 5. Nf3 {[%clk 0:04:53]} 5...
Bb4 {[%clk 0:04:48.7]} 6. Ne5 {[%clk 0:04:49.8]} 6... Bxc3+ {[%clk 0:04:42.2]}
7. bxc3 {[%clk 0:04:48.2]} 7... Qa5 {[%clk 0:04:33.9]} 8. Qd2 {[%clk 0:04:46]}
8... Nf6 {[%clk 0:04:25.6]} 9. f3 {[%clk 0:04:44.4]} 9... O-O {[%clk 0:04:23.7]}
10. h4 {[%clk 0:04:43.1]} 10... Nbd7 {[%clk 0:04:20.2]} 11. g4 {[%clk
0:04:41.6]} 11... Nxe5 {[%clk 0:04:18.5]} 12. dxe5 {[%clk 0:04:40.3]} 12... Bxg4
{[%clk 0:04:04.7]} 13. fxg4 {[%clk 0:04:38.2]} 13... Nxg4 {[%clk 0:04:03.9]} 14.
Rg1 {[%clk 0:04:37.1]} 14... Nf2 {[%clk 0:03:46.3]} 15. Kxf2 {[%clk 0:04:35.1]}
15... c5 {[%clk 0:03:35.7]} 16. Bh6 {[%clk 0:04:33.5]} 16... g6 {[%clk
0:03:27.3]} 17. Bxf8 {[%clk 0:04:32]} 17... Rxf8 {[%clk 0:03:26.9]} 18. h5
{[%clk 0:04:31]} 18... d4 {[%clk 0:03:18.8]} 19. exd4 {[%clk 0:04:28.8]} 19...
cxd4 {[%clk 0:03:18.2]} 20. Qxd4 {[%clk 0:04:28.1]} 20... b6 {[%clk 0:03:16.2]}
21. h6 {[%clk 0:04:20.5]} 21... f5 {[%clk 0:03:13.2]} 22. Qd7 {[%clk 0:04:17.5]}
22... Qxc3 {[%clk 0:03:07.2]} 23. Qg7# {[%clk 0:04:15.3]} 1-0

[Event "Live Chess"]
[Site "Chess.com"]
[Date "2023.05.21"]
[Round "-"]
[White "MarkLim1"]
[Black "AttackingSnowLeopard"]
[Result "0-1"]
[WhiteElo "1710"]
[BlackElo "2169"]
[TimeControl "300"]
[EndTime "8:41:23 PDT"]
[Termination "AttackingSnowLeopard won by resignation"]

1. d4 {[%clk 0:04:57.1]} 1... d5 {[%clk 0:04:58.3]} 2. Nf3 {[%clk 0:04:56.5]}
2... Nf6 {[%clk 0:04:56.8]} 3. c4 {[%clk 0:04:55.8]} 3... c6 {[%clk 0:04:56]} 4.
cxd5 {[%clk 0:04:55.1]} 4... cxd5 {[%clk 0:04:55.2]} 5. Nc3 {[%clk 0:04:54]}
5... Nc6 {[%clk 0:04:54.7]} 6. Bf4 {[%clk 0:04:53.2]} 6... Bf5 {[%clk
0:04:54.3]} 7. e3 {[%clk 0:04:51.9]} 7... e6 {[%clk 0:04:53.9]} 8. Qb3 {[%clk
0:04:51]} 8... Qb6 {[%clk 0:04:51.8]} 9. Qxb6 {[%clk 0:04:49.1]} 9... axb6
{[%clk 0:04:51.7]} 10. Nh4 {[%clk 0:04:47.5]} 10... Bg6 {[%clk 0:04:48.6]} 11.
h3 {[%clk 0:04:46.2]} 11... Bb4 {[%clk 0:04:44.9]} 12. Nxg6 {[%clk 0:04:44.5]}
12... hxg6 {[%clk 0:04:43.7]} 13. Bd3 {[%clk 0:04:43]} 13... O-O {[%clk
0:04:41.1]} 14. O-O {[%clk 0:04:41.6]} 14... Bxc3 {[%clk 0:04:36.6]} 15. bxc3
{[%clk 0:04:40.4]} 15... Rfc8 {[%clk 0:04:32.6]} 16. Rfb1 {[%clk 0:04:30.3]}
16... Nd7 {[%clk 0:04:30.9]} 17. c4 {[%clk 0:04:24.5]} 17... dxc4 {[%clk
0:04:25.7]} 18. Bxc4 {[%clk 0:04:23.7]} 18... Nxd4 {[%clk 0:04:24.5]} 19. Bxe6
{[%clk 0:04:08.2]} 19... Nxe6 {[%clk 0:04:22.8]} 20. Rc1 {[%clk 0:04:06.5]}
20... Rxc1+ {[%clk 0:04:20.7]} 0-1

[Event "Live Chess"]
[Site "Chess.com"]
[Date "2023.05.21"]
[Round "-"]
[White "manthanit"]
[Black "JohanKjeldahl"]
[Result "1/2-1/2"]
[WhiteElo "1113"]
[BlackElo "1871"]
[TimeControl "300"]
[EndTime "8:41:25 PDT"]
[Termination "Game drawn by agreement"]

1. e4 {[%clk 0:04:59.6]} 1... c5 {[%clk 0:04:57.7]} 2. Nf3 {[%clk 0:04:58.4]}
2... Nc6 {[%clk 0:04:55.7]} 3. Bc4 {[%clk 0:04:57.6]} 3... e6 {[%clk 0:04:54.2]}
4. d4 {[%clk 0:04:56.1]} 4... cxd4 {[%clk 0:04:52.4]} 5. Nxd4 {[%clk 0:04:55.4]}
5... a6 {[%clk 0:04:51.3]} 6. a4 {[%clk 0:04:52]} 6... Nf6 {[%clk 0:04:49]} 7.
Nc3 {[%clk 0:04:49.4]} 7... Qc7 {[%clk 0:04:47.4]} 8. Nxc6 {[%clk 0:04:42.1]}
8... dxc6 {[%clk 0:04:45.6]} 9. O-O {[%clk 0:04:33.9]} 9... Bd6 {[%clk
0:04:43.9]} 10. f4 {[%clk 0:04:26.8]} 10... O-O {[%clk 0:04:38.4]} 11. e5 {[%clk
0:04:25.9]} 11... Bc5+ {[%clk 0:04:36.9]} 12. Kh1 {[%clk 0:04:24.3]} 12... Nd5
{[%clk 0:04:32.3]} 13. Nxd5 {[%clk 0:04:21.9]} 13... cxd5 {[%clk 0:04:30.5]} 14.
Bd3 {[%clk 0:04:18.7]} 14... f5 {[%clk 0:04:26.3]} 15. exf6 {[%clk 0:04:02.2]}
15... Rxf6 {[%clk 0:04:25.1]} 16. b3 {[%clk 0:03:59.8]} 16... Bd4 {[%clk
0:04:21.2]} 17. Rb1 {[%clk 0:03:57.2]} 17... e5 {[%clk 0:04:07]} 18. fxe5 {[%clk
0:03:54.8]} 18... Rxf1+ {[%clk 0:04:04.9]} 19. Bxf1 {[%clk 0:03:52]} 19... Qxe5
{[%clk 0:04:03]} 20. Bd3 {[%clk 0:03:35.8]} 20... Bd7 {[%clk 0:03:56.8]} 21. Ba3
{[%clk 0:03:27.5]} 21... Re8 {[%clk 0:03:49.8]} 22. Qf1 {[%clk 0:02:52.1]} 22...
Bb6 {[%clk 0:03:39.4]} 23. Rd1 {[%clk 0:02:36.3]} 23... Bc7 {[%clk 0:03:37.6]}
24. g3 {[%clk 0:02:26.3]} 24... d4 {[%clk 0:03:36]} 25. Qf2 {[%clk 0:02:06.9]}
25... Bc6+ {[%clk 0:03:27.1]} 26. Kg1 {[%clk 0:02:06]} 26... Qe3 {[%clk
0:03:22.4]} 27. Rf1 {[%clk 0:02:01]} 27... Bd7 {[%clk 0:02:47.7]} 28. Bc5 {[%clk
0:01:56.4]} 28... Qxf2+ {[%clk 0:02:35.5]} 29. Rxf2 {[%clk 0:01:55.1]} 29...
Re1+ {[%clk 0:02:30.8]} 30. Rf1 {[%clk 0:01:49]} 30... Rxf1+ {[%clk 0:02:28.7]}
31. Kxf1 {[%clk 0:01:48.2]} 31... Be5 {[%clk 0:02:26.7]} 1/2-1/2

[Event "Live Chess"]
[Site "Chess.com"]
[Date "2023.05.21"]
[Round "-"]
[White "KeithArkell"]
[Black "davigator"]
[Result "1-0"]
[WhiteElo "2460"]
[BlackElo "2302"]
[TimeControl "300"]
[EndTime "8:41:29 PDT"]
[Termination "KeithArkell won on time"]

1. d4 {[%clk 0:04:57.5]} 1... Nf6 {[%clk 0:04:58.4]} 2. Nf3 {[%clk 0:04:56.5]}
2... e6 {[%clk 0:04:57.7]} 3. c4 {[%clk 0:04:55.7]} 3... Bb4+ {[%clk 0:04:56.6]}
4. Bd2 {[%clk 0:04:54.9]} 4... a5 {[%clk 0:04:55]} 5. g3 {[%clk 0:04:53.8]} 5...
b6 {[%clk 0:04:54]} 6. Bg2 {[%clk 0:04:52.5]} 6... Ba6 {[%clk 0:04:53.6]} 7. b3
{[%clk 0:04:50.9]} 7... c6 {[%clk 0:04:52.7]} 8. O-O {[%clk 0:04:49.1]} 8... O-O
{[%clk 0:04:52]} 9. Nc3 {[%clk 0:04:44.9]} 9... d5 {[%clk 0:04:50.4]} 10. Ne5
{[%clk 0:04:37]} 10... Nfd7 {[%clk 0:04:47.2]} 11. Nxd7 {[%clk 0:04:31.5]} 11...
Nxd7 {[%clk 0:04:45.6]} 12. Rc1 {[%clk 0:04:29.5]} 12... Rc8 {[%clk 0:04:43.4]}
13. Nb1 {[%clk 0:04:21]} 13... Be7 {[%clk 0:04:40.2]} 14. a4 {[%clk 0:04:14.5]}
14... f5 {[%clk 0:04:37.3]} 15. Re1 {[%clk 0:04:00]} 15... Nf6 {[%clk
0:04:31.7]} 16. Bf4 {[%clk 0:03:55.9]} 16... Bb4 {[%clk 0:04:29.3]} 17. Nd2
{[%clk 0:03:47.7]} 17... Ne4 {[%clk 0:04:27.1]} 18. f3 {[%clk 0:03:42.8]} 18...
Nd6 {[%clk 0:04:19.6]} 19. Bxd6 {[%clk 0:03:32.2]} 19... Qxd6 {[%clk 0:04:17.7]}
20. Rf1 {[%clk 0:03:23.9]} 20... c5 {[%clk 0:04:14.5]} 21. cxd5 {[%clk
0:03:20.4]} 21... exd5 {[%clk 0:04:00.1]} 22. f4 {[%clk 0:03:08.3]} 22... c4
{[%clk 0:03:53.9]} 23. bxc4 {[%clk 0:02:56.3]} 23... dxc4 {[%clk 0:03:52.5]} 24.
Nf3 {[%clk 0:02:52.9]} 24... c3 {[%clk 0:03:45.4]} 25. Qc2 {[%clk 0:02:41.5]}
25... g6 {[%clk 0:03:43]} 26. Rcd1 {[%clk 0:02:39.6]} 26... Rfe8 {[%clk
0:03:39.9]} 27. Ne5 {[%clk 0:02:38.3]} 27... Re7 {[%clk 0:03:28.9]} 28. Rf2
{[%clk 0:02:35]} 28... Kg7 {[%clk 0:03:25.9]} 29. e3 {[%clk 0:02:34.3]} 29...
Qe6 {[%clk 0:03:17.2]} 30. h3 {[%clk 0:02:26.9]} 30... Bc4 {[%clk 0:03:03.9]}
31. Rb1 {[%clk 0:02:24.9]} 31... Bd5 {[%clk 0:03:00.9]} 32. g4 {[%clk
0:02:18.7]} 32... fxg4 {[%clk 0:02:57.5]} 33. hxg4 {[%clk 0:02:16.7]} 33... Bxg2
{[%clk 0:02:49.5]} 34. Rxg2 {[%clk 0:02:15.7]} 34... Qd5 {[%clk 0:02:37.7]} 35.
Rf1 {[%clk 0:02:11.6]} 35... Rf8 {[%clk 0:02:32.6]} 36. f5 {[%clk 0:02:08]}
36... Rxe5 {[%clk 0:02:31.1]} 37. dxe5 {[%clk 0:02:05.7]} 37... Qxe5 {[%clk
0:02:30.4]} 38. Qd3 {[%clk 0:02:02.5]} 38... Bc5 {[%clk 0:02:28.6]} 39. Rf3
{[%clk 0:02:01.5]} 39... Rf6 {[%clk 0:02:20]} 40. Rc2 {[%clk 0:01:51.6]} 40...
Bb4 {[%clk 0:02:16.3]} 41. Kg2 {[%clk 0:01:50.5]} 41... Rd6 {[%clk 0:02:15.1]}
42. Qc4 {[%clk 0:01:32]} 42... Rd2+ {[%clk 0:01:25.9]} 43. Rf2 {[%clk 0:01:31]}
43... Qd5+ {[%clk 0:01:22]} 44. Qxd5 {[%clk 0:01:28.4]} 44... Rxd5 {[%clk
0:01:21.9]} 45. e4 {[%clk 0:01:24.4]} 45... Re5 {[%clk 0:01:19.8]} 46. Kf3
{[%clk 0:01:23.3]} 46... g5 {[%clk 0:01:16.1]} 47. Rfe2 {[%clk 0:01:20.1]} 47...
Kf6 {[%clk 0:01:14.4]} 48. Re3 {[%clk 0:01:19.3]} 48... Rc5 {[%clk 0:01:12]} 49.
Rd3 {[%clk 0:01:16.9]} 49... Ke5 {[%clk 0:01:10.8]} 50. Rd8 {[%clk 0:01:15.7]}
50... Rc7 {[%clk 0:01:09.3]} 51. Ke3 {[%clk 0:01:11]} 51... Bc5+ {[%clk
0:01:06.7]} 52. Kd3 {[%clk 0:01:09.8]} 52... Bb4 {[%clk 0:01:06.2]} 53. Rd5+
{[%clk 0:01:03]} 53... Kf4 {[%clk 0:01:04.5]} 54. e5 {[%clk 0:01:02.5]} 54...
Kxg4 {[%clk 0:01:03]} 55. e6 {[%clk 0:01:02.1]} 55... Re7 {[%clk 0:00:47.4]} 56.
Ke4 {[%clk 0:00:54.3]} 56... h5 {[%clk 0:00:39.7]} 57. Ke5 {[%clk 0:00:53.2]}
57... h4 {[%clk 0:00:18.9]} 58. f6 {[%clk 0:00:52.6]} 58... Re8 {[%clk
0:00:17.4]} 59. f7 {[%clk 0:00:49.2]} 59... Rf8 {[%clk 0:00:15.4]} 60. Kf6
{[%clk 0:00:48.1]} 60... h3 {[%clk 0:00:13.4]} 61. Rxg5+ {[%clk 0:00:47.3]}
61... Kf3 {[%clk 0:00:11.3]} 62. Rh2 {[%clk 0:00:44.1]} 62... c2 {[%clk
0:00:08.5]} 63. Rxc2 {[%clk 0:00:41.5]} 63... Bd6 {[%clk 0:00:06.1]} 64. Rc3+
{[%clk 0:00:39.2]} 64... Kf4 {[%clk 0:00:03.3]} 65. Rxh3 {[%clk 0:00:37.6]}
65... Rc8 {[%clk 0:00:01.3]} 66. Rf5+ {[%clk 0:00:36]} 66... Kg4 {[%clk
0:00:00.2]} 67. Rd3 {[%clk 0:00:33.8]} 1-0

[Event "Live Chess"]
[Site "Chess.com"]
[Date "2023.05.21"]
[Round "-"]
[White "Rusty_Bridges"]
[Black "domrobson"]
[Result "0-1"]
[WhiteElo "1526"]
[BlackElo "1809"]
[TimeControl "300"]
[EndTime "8:41:33 PDT"]
[Termination "domrobson won by resignation"]

1. e4 {[%clk 0:04:56.1]} 1... e5 {[%clk 0:04:59.6]} 2. f4 {[%clk 0:04:52.7]}
2... Bc5 {[%clk 0:04:57.6]} 3. Nf3 {[%clk 0:04:48.5]} 3... d6 {[%clk 0:04:57.1]}
4. Bc4 {[%clk 0:04:45.5]} 4... Nf6 {[%clk 0:04:55.7]} 5. d3 {[%clk 0:04:44.3]}
5... O-O {[%clk 0:04:54.7]} 6. Nc3 {[%clk 0:04:38.1]} 6... a6 {[%clk 0:04:53.2]}
7. Qe2 {[%clk 0:04:32.1]} 7... Nc6 {[%clk 0:04:48.7]} 8. Bd2 {[%clk 0:04:26.3]}
8... exf4 {[%clk 0:04:43.7]} 9. Bxf4 {[%clk 0:04:24.1]} 9... Bg4 {[%clk
0:04:43.3]} 10. h3 {[%clk 0:04:18.6]} 10... Nd4 {[%clk 0:04:41]} 11. Qd1 {[%clk
0:04:14.5]} 11... Bxf3 {[%clk 0:04:35]} 12. gxf3 {[%clk 0:04:12.6]} 12... b5
{[%clk 0:04:33.9]} 13. Bb3 {[%clk 0:04:09.3]} 13... b4 {[%clk 0:04:31.9]} 14.
Ne2 {[%clk 0:04:05.9]} 14... Nxf3+ {[%clk 0:04:30.1]} 15. Kf1 {[%clk 0:04:02.9]}
15... Nh5 {[%clk 0:04:23.6]} 16. Bh2 {[%clk 0:03:57.6]} 16... Qf6 {[%clk
0:04:20.8]} 0-1

[Event "Live Chess"]
[Site "Chess.com"]
[Date "2023.05.21"]
[Round "-"]
[White "seabuck"]
[Black "CarlsenCab"]
[Result "1-0"]
[WhiteElo "1909"]
[BlackElo "511"]
[TimeControl "300"]
[EndTime "8:41:35 PDT"]
[Termination "seabuck won by checkmate"]

1. d4 {[%clk 0:04:56.6]} 1... f5 {[%clk 0:04:59.4]} 2. c4 {[%clk 0:04:55.6]}
2... e6 {[%clk 0:04:58.5]} 3. Nc3 {[%clk 0:04:54.8]} 3... Nf6 {[%clk 0:04:57.7]}
4. g3 {[%clk 0:04:54.1]} 4... Be7 {[%clk 0:04:56.1]} 5. Bg2 {[%clk 0:04:53.3]}
5... O-O {[%clk 0:04:54.9]} 6. Nh3 {[%clk 0:04:52.5]} 6... d6 {[%clk 0:04:54.1]}
7. O-O {[%clk 0:04:50.6]} 7... Nc6 {[%clk 0:04:53.1]} 8. e4 {[%clk 0:04:46]}
8... h6 {[%clk 0:04:45.4]} 9. Nf4 {[%clk 0:04:35]} 9... Qd7 {[%clk 0:04:40.1]}
10. d5 {[%clk 0:04:31.5]} 10... exd5 {[%clk 0:04:38.1]} 11. exd5 {[%clk
0:04:29.9]} 11... Nb4 {[%clk 0:04:33.3]} 12. a3 {[%clk 0:04:19.5]} 12... g5
{[%clk 0:04:24.7]} 13. Ng6 {[%clk 0:04:12.8]} 13... Re8 {[%clk 0:04:17.2]} 14.
Nxe7+ {[%clk 0:04:09.4]} 14... Rxe7 {[%clk 0:04:15.9]} 15. axb4 {[%clk
0:04:08.3]} 15... f4 {[%clk 0:04:12.5]} 16. gxf4 {[%clk 0:04:03.4]} 16... gxf4
{[%clk 0:04:11.4]} 17. Bxf4 {[%clk 0:04:02.1]} 17... Nh5 {[%clk 0:04:08.1]} 18.
Qxh5 {[%clk 0:03:55.3]} 18... Qg4 {[%clk 0:03:56.1]} 19. Qxg4+ {[%clk
0:03:51.9]} 19... Bxg4 {[%clk 0:03:53.9]} 20. Rfe1 {[%clk 0:03:46.9]} 20... Rae8
{[%clk 0:03:47.4]} 21. Rxe7 {[%clk 0:03:41.8]} 21... Rxe7 {[%clk 0:03:46.4]} 22.
f3 {[%clk 0:03:35.2]} 22... Bf5 {[%clk 0:03:42.4]} 23. Kf2 {[%clk 0:03:33.5]}
23... Bd3 {[%clk 0:03:39.4]} 24. c5 {[%clk 0:03:27]} 24... dxc5 {[%clk
0:03:37.8]} 25. bxc5 {[%clk 0:03:25.4]} 25... b6 {[%clk 0:03:24.1]} 26. d6
{[%clk 0:03:23.1]} 26... cxd6 {[%clk 0:03:22.9]} 27. cxd6 {[%clk 0:03:21.3]}
27... Rc7 {[%clk 0:03:21.4]} 28. dxc7 {[%clk 0:03:19.1]} 28... Kf7 {[%clk
0:03:18.8]} 29. c8=Q {[%clk 0:03:15.7]} 29... Kf6 {[%clk 0:03:10.9]} 30. Nd5+
{[%clk 0:03:09.5]} 30... Kf7 {[%clk 0:03:08.6]} 31. Rxa7+ {[%clk 0:03:07.3]}
31... Kg6 {[%clk 0:03:06.6]} 32. Qe6+ {[%clk 0:03:02.1]} 32... Kh5 {[%clk
0:03:03.3]} 33. Qg4# {[%clk 0:03:00.3]} 1-0

[Event "Live Chess"]
[Site "Chess.com"]
[Date "2023.05.21"]
[Round "-"]
[White "LordBenin"]
[Black "BillythekidFellowes"]
[Result "0-1"]
[WhiteElo "1388"]
[BlackElo "2132"]
[TimeControl "300"]
[EndTime "8:41:41 PDT"]
[Termination "BillythekidFellowes won by checkmate"]

1. e4 {[%clk 0:04:58.2]} 1... e6 {[%clk 0:04:59.9]} 2. d4 {[%clk 0:04:55.4]}
2... d5 {[%clk 0:04:59.3]} 3. exd5 {[%clk 0:04:53.9]} 3... exd5 {[%clk
0:04:51.1]} 4. Nf3 {[%clk 0:04:52.4]} 4... Nf6 {[%clk 0:04:50.2]} 5. Bf4 {[%clk
0:04:50]} 5... Bd6 {[%clk 0:04:48.8]} 6. Bxd6 {[%clk 0:04:48.6]} 6... Qxd6
{[%clk 0:04:48.7]} 7. c3 {[%clk 0:04:47.1]} 7... O-O {[%clk 0:04:47.4]} 8. h3
{[%clk 0:04:45.7]} 8... Re8+ {[%clk 0:04:46.5]} 9. Be2 {[%clk 0:04:44.2]} 9...
Qe7 {[%clk 0:04:45.9]} 10. Ng1 {[%clk 0:04:33]} 10... Bf5 {[%clk 0:04:41.6]} 11.
Nd2 {[%clk 0:04:31.1]} 11... Nc6 {[%clk 0:04:35.1]} 12. f3 {[%clk 0:04:17.6]}
12... Bd3 {[%clk 0:04:33.4]} 13. Kf2 {[%clk 0:03:47.9]} 13... Qe3+ {[%clk
0:04:30.1]} 14. Kg3 {[%clk 0:03:41.7]} 14... Nh5+ {[%clk 0:04:28.3]} 15. Kh2
{[%clk 0:03:32.2]} 15... Qf4+ {[%clk 0:04:28.2]} 16. g3 {[%clk 0:03:26.4]} 16...
Qxg3# {[%clk 0:04:28.1]} 0-1

[Event "Live Chess"]
[Site "Chess.com"]
[Date "2023.05.21"]
[Round "-"]
[White "Ferrarifan27"]
[Black "luckywookie"]
[Result "1-0"]
[WhiteElo "2057"]
[BlackElo "823"]
[TimeControl "300"]
[EndTime "8:42:08 PDT"]
[Termination "Ferrarifan27 won by checkmate"]

1. e4 {[%clk 0:04:58.8]} 1... c6 {[%clk 0:04:58.5]} 2. d4 {[%clk 0:04:56.7]}
2... d5 {[%clk 0:04:57.5]} 3. e5 {[%clk 0:04:55.4]} 3... c5 {[%clk 0:04:56.9]}
4. dxc5 {[%clk 0:04:53.6]} 4... Nc6 {[%clk 0:04:55.6]} 5. a3 {[%clk 0:04:51.4]}
5... e6 {[%clk 0:04:48.1]} 6. b4 {[%clk 0:04:50.4]} 6... Nge7 {[%clk 0:04:44.4]}
7. Nf3 {[%clk 0:04:48.4]} 7... Nf5 {[%clk 0:04:40.8]} 8. Bb2 {[%clk 0:04:46.9]}
8... Be7 {[%clk 0:04:36.3]} 9. Bd3 {[%clk 0:04:43.7]} 9... O-O {[%clk
0:04:23.7]} 10. O-O {[%clk 0:04:41.4]} 10... b6 {[%clk 0:03:57.3]} 11. cxb6
{[%clk 0:04:38]} 11... axb6 {[%clk 0:03:55.6]} 12. Nc3 {[%clk 0:04:36.5]} 12...
Ba6 {[%clk 0:03:52.2]} 13. b5 {[%clk 0:04:34.7]} 13... Ncd4 {[%clk 0:03:22.8]}
14. bxa6 {[%clk 0:04:29.9]} 14... Nxf3+ {[%clk 0:03:21.1]} 15. Qxf3 {[%clk
0:04:28.3]} 15... Nd4 {[%clk 0:03:18.7]} 16. Qh3 {[%clk 0:04:24.3]} 16... f6
{[%clk 0:03:05.3]} 17. Qxh7+ {[%clk 0:04:21.1]} 17... Kf7 {[%clk 0:03:03.6]} 18.
Bg6# {[%clk 0:04:20.1]} 1-0